[Event "Czech Extraliga 2023-24"]
[Site "Czech Republic"]
[Date "2024.04.06"]
[Round "9.1"]
[White "Korobov, Anton"]
[Black "Teclaf, Pawel"]
[Result "1/2-1/2"]
[ECO "E15"]
[WhiteElo "2663"]
[BlackElo "2563"]
[Annotator "TA"]
[PlyCount "76"]
[EventDate "2023.10.14"]
[EventCountry "CZE"]
[SourceTitle "playchess.com"]
[Source "ChessBase"]
[SourceQuality "1"]
[TimeControl "40/5400+30:1800+30"]

{[%evp 12,76,16,0,2,11,9,14,55,41,48,42,38,39,49,45,45,44,55,30,47,22,35,12,37,25,41,40,52,0,10,0,27,0,20,3,0,0,11,0,4,7,33,27,47,0,0,-5,0,-121,56,68,59,20,60,0,0,0,0,0,0,0,0,0,0,0,0]} 1. d4 {[%emt 0:00:02]} Nf6 {[%emt 0:00:04]} 2. c4 {[%emt 0:00:18]} e6 {[%emt 0:00:05]} 3. Nf3 {[%emt 0:00:07]} b6 {[%emt 0:00:03]} 4. g3 {[%emt 0:01:11]} Bb4+ {[%emt 0:00:05]} 5. Bd2 {[%emt 0:00:32]} Be7 {[%emt 0:00:04]} 6. Nc3 {[%emt 0:00:56] E15: Queen's Indian: 4 g3 sidelines, 4 g3 Ba6 and 4 g3 Bb7 early deviations.} Bb7 {[%emt 0:00:04]} 7. Qb1 {[%emt 0:00:20]} c5 {[%emt 0:13:38]} 8. d5 {[%emt 0:01:35]} exd5 {[%emt 0:02:16]} 9. cxd5 {[%emt 0:01:47]} b5 $146 {[%emt 0:05:11]} ({Predecessor:} 9... d6 10. Bg2 O-O 11. O-O Nbd7 12. e4 Re8 13. Re1 Ng4 14. h3 Nge5 15. Nxe5 Nxe5 {0-1 Stepanencu,N (2280)-Magold,V (2026) ROM-ch U18 Eforie Nord 2022 (5)}) 10. e4 {[%emt 0:04:07]} b4 {[%emt 0:02:51]} 11. Nd1 {[%emt 0:00:23]} O-O {[%emt 0:01:23]} 12. Ne3 {[%emt 0:03:03]} d6 {[%emt 0:04:02]} 13. Bd3 {[%emt 0:04:27]} Nbd7 {[%emt 0:01:15]} 14. O-O {[%emt 0:01:49]} Re8 {[%emt 0:01:01]} 15. Re1 {[%emt 0:10:01]} Bf8 {[%emt 0:03:45]} 16. Qc2 {[%emt 0:05:04]} a5 {[%emt 0:05:07]} 17. Rad1 {[%emt 0:03:42]} g6 {[%emt 0:04:44]} 18. Bc1 {[%emt 0:02:28]} Bg7 {[%emt 0:16:50]} 19. Nc4 {[%emt 0:07:28]} Nb6 {[%emt 0:01:23]} 20. Nfd2 {[%emt 0:01:33]} Nxc4 {[%emt 0:02:00]} 21. Nxc4 {[%emt 0:00:20]} Ba6 {[%emt 0:00:56]} 22. f4 {[%emt 0:12:43]} Qb8 {[%emt 0:13:40]} 23. e5 {[%emt 0:11:48]} dxe5 {[%emt 0:02:12]} (23... Nxd5 $2 24. Nxd6 (24. exd6 $2 Bd4+ 25. Kg2 Bxc4 $17) 24... Bxd3 25. Qxd3 $18 (25. Rxd3 b3 $18)) 24. Nxe5 {[%emt 0:00:58]} Bxd3 {[%emt 0:02:07]} (24... Nxd5 $2 25. Bxa6 (25. Qxc5 Bxd3 26. Rxd3 Nf6 $16) 25... Rxa6 26. Rxd5 $18) 25. Qxd3 {[%emt 0:00:02]} Qd6 {[%emt 0:00:31]} 26. Be3 {[%emt 0:02:33]} Rad8 {[%emt 0:05:32]} 27. Qb5 {[%emt 0:00:46]} Bf8 {[%emt 0:07:48]} 28. Re2 {[%emt 0:05:02]} (28. Nc4 $1 $14 {might be stronger.} Qc7 29. f5 (29. Qxa5 Qxa5 30. Nxa5 Nxd5 $11) (29. Qc6 Nxd5 30. Qxc7 Nxc7 $17)) 28... Qc7 $11 {[%emt 0:04:16]} 29. Rc2 {[%emt 0:06:41]} Qc8 {[%emt 0:00:47]} (29... Rxd5 $2 30. Rxd5 Qc8 31. Rdd2 $18) 30. Bxc5 {[%emt 0:01:45]} (30. Rcd2 $11) 30... Rxd5 $2 {[%emt 0:00:16]} (30... Ne4 $17 {[%cal Rf8c5]} 31. Rdc1 Bxc5+ (31... Nxc5 $2 32. Rxc5 Bxc5+ 33. Qxc5 $17) (31... b3 32. axb3 Bxc5+ 33. Rxc5 $11) 32. Rxc5 Nxc5 33. Qxc5 Qxc5+ 34. Rxc5 f6) 31. Rxd5 $14 {[%emt 0:01:29]} Nxd5 {[%emt 0:00:01]} 32. Rc4 {[%emt 0:03:13]} (32. Qxa5 Nxf4 33. gxf4 Rxe5 34. fxe5 Qg4+ 35. Kf2 (35. Rg2 Qd1+ 36. Kf2 Qd2+ 37. Kf1 Qc1+ 38. Ke2 Qc4+ 39. Ke1 Qc1+ 40. Ke2 Qc4+ 41. Ke1 Qc1+ 42. Ke2 $11) 35... Qf5+ 36. Ke3 Qxc2 37. Bxf8 Qc1+ 38. Kd3 Qf1+ 39. Ke3 Kxf8 $17) 32... Nc7 {[%emt 0:01:23]} 33. Qxa5 {[%emt 0:00:54]} (33. Qc6 $1 $14 Rd8 34. Rc1 (34. Bxf8 Rd1+ 35. Kf2 Qh3 $11)) 33... Rxe5 $1 $11 {[%emt 0:00:01]} 34. fxe5 {[%emt 0:00:47]} Ne6 {[%emt 0:00:04]} 35. Bxf8 $1 {[%emt 0:01:53]} Qxc4 {[%emt 0:00:02]} 36. Bh6 {[%emt 0:00:55]} Qd4+ {[%emt 0:00:18]} 37. Kf1 {[%emt 0:01:11]} Qd1+ {[%emt 0:00:28]} ({Weaker is} 37... Qxb2 38. Qa8+) 38. Kf2 {[%emt 0:00:44]} Qd4+ {[%emt 0:00:03]} 1/2-1/2

[Event "Czech Extraliga 2023-24"]
[Site "Czech Republic"]
[Date "2024.04.06"]
[Round "9.1"]
[White "Rodshtein, Maxim"]
[Black "Nabaty, Tamir"]
[Result "1/2-1/2"]
[ECO "C42"]
[WhiteElo "2588"]
[BlackElo "2643"]
[Annotator "TA"]
[PlyCount "32"]
[EventDate "2023.10.14"]
[EventCountry "CZE"]
[SourceTitle "playchess.com"]
[Source "ChessBase"]
[SourceQuality "1"]
[TimeControl "40/5400+30:1800+30"]

{[%evp 9,32,9,14,10,22,18,21,3,21,16,20,9,12,22,13,17,14,7,12,16,25,25,20,27,30]} 1. e4 {[%emt 0:00:09]} e5 {[%emt 0:00:12]} 2. Nf3 {[%emt 0:00:07]} Nf6 {[%emt 0:00:28]} 3. Nxe5 {[%emt 0:00:23]} d6 {[%emt 0:00:10]} 4. Nf3 {[%emt 0:00:13]} Nxe4 {[%emt 0:00:11]} 5. Bd3 {[%emt 0:02:17]} Nf6 {[%emt 0:01:26]} 6. O-O {[%emt 0:00:31]} Be7 {[%emt 0:02:12]} 7. Re1 {[%emt 0:02:04]} O-O {[%emt 0:01:07]} 8. Bf1 {[%emt 0:00:42] The position is equal.} Bf5 {[%emt 0:02:46]} 9. d4 {[%emt 0:05:42]} d5 {[%emt 0:07:39]} 10. c3 {[%emt 0:04:41]} Nbd7 {[%emt 0:05:36]} 11. Qb3 {[%emt 0:08:06]} Nb6 {[%emt 0:02:03]} 12. a4 {[%emt 0:03:56]} a5 {[%emt 0:02:49]} 13. Bf4 {[%emt 0:05:53]} Ne4 {[%emt 0:04:28]} 14. Nbd2 {[%emt 0:05:11]} Nxd2 {[%emt 0:05:17]} 15. Nxd2 {[%emt 0:09:50]} Bd6 {[%emt 0:04:51]} 16. Bxd6 {[%emt 0:15:45]} Qxd6 {[%emt 0:57:15] A rather calm draw.   Weighted Error Value: White=0.05 (flawless) /Black=0.04 (flawless) .  OK:         	White=3     	Black=3      Best:        	---       	Black=1} 1/2-1/2

[Event "Czech Extraliga 2023-24"]
[Site "Czech Republic"]
[Date "2024.04.06"]
[Round "9.1"]
[White "Pechac, Jergus"]
[Black "Gelfand, Boris"]
[Result "1/2-1/2"]
[ECO "C42"]
[WhiteElo "2575"]
[BlackElo "2661"]
[Annotator "TA"]
[PlyCount "87"]
[EventDate "2023.10.14"]
[EventCountry "CZE"]
[SourceTitle "playchess.com"]
[Source "ChessBase"]
[SourceQuality "1"]
[TimeControl "40/5400+30:1800+30"]

{[%evp 18,87,38,33,37,39,35,43,52,50,47,42,58,47,66,50,54,51,68,54,63,43,63,58,64,64,77,31,59,63,61,68,61,62,60,56,131,53,69,54,156,159,218,218,219,213,221,211,210,214,219,219,214,119,118,76,70,71,64,15,9,12,10,20,17,12,37,8,8,8,8,8]} 1. e4 {[%emt 0:00:04]} e5 {[%emt 0:00:03]} 2. Nf3 {[%emt 0:00:07]} Nf6 {[%emt 0:00:03][%cal Bg8f6,Bf6e4,Be4d2][%mdl 32]} 3. Nxe5 {[%emt 0:00:07]} d6 {[%emt 0:00:03]} 4. Nf3 {[%emt 0:00:06]} Nxe4 {[%emt 0:00:03]} 5. d4 {[%emt 0:00:07]} d5 {[%emt 0:00:05]} 6. Bd3 {[%emt 0:00:05]} Nc6 {[%emt 0:00:11]} 7. O-O {[%emt 0:01:09]} Be7 {[%emt 0:00:55]} 8. Nbd2 {[%emt 0:00:13]} Nxd2 {[%emt 0:00:37]} 9. Bxd2 {[%emt 0:00:07]} Bg4 {[%emt 0:00:10]} 10. c3 {[%emt 0:00:14]} O-O {[%emt 0:00:22]} 11. h3 {[%emt 0:00:06]} Bh5 {[%emt 0:00:13]} 12. g3 {[%emt 0:00:06]} Bg6 {[%emt 0:01:34] White is slightly better.} 13. Bxg6 {[%emt 0:01:56]} fxg6 {[%emt 0:01:11]} 14. Ne1 {[%emt 0:00:07]} Qd7 {[%emt 0:05:41]} 15. Qg4 {[%emt 0:00:09]} Rf5 {[%emt 0:02:09]} 16. Ng2 {[%emt 0:04:11]} Rd8 {[%emt 0:03:13]} 17. Rae1 {[%emt 0:01:20]} Rf7 {[%emt 0:06:32]} 18. Re6 {[%emt 0:08:34]} Bf6 {[%emt 0:04:27]} 19. Rfe1 {[%emt 0:07:55]} Re7 {[%emt 0:18:20]} 20. Nf4 {[%emt 0:01:16] White has more active pieces.} Rxe6 {[%emt 0:01:43]} 21. Nxe6 {[%emt 0:15:26]} Re8 {[%emt 0:05:05]} 22. Re3 {[%emt 0:13:46]} (22. Nf4 $16 Rxe1+ 23. Bxe1) 22... h5 {[%emt 0:10:57]} 23. Nc5 {[%emt 0:07:14]} (23. Qxg6 $2 {is the wrong capture.} Rxe6 24. Qxh5 Rxe3 25. Bxe3 Qf7 $19) (23. Qe2 {simplifies} Nd8 24. Nf4 Rxe3 25. Bxe3 Qf7 26. h4) 23... hxg4 {[%emt 0:02:44]} ({Of course not} 23... Qxg4 $6 24. Rxe8+ (24. hxg4 Rc8 $16) 24... Kf7 25. hxg4 $16) 24. Nxd7 {[%emt 0:00:10]} Rxe3 {[%emt 0:00:02]} 25. Bxe3 {[%emt 0:38:25]} gxh3 $14 {[%emt 0:00:03][%mdl 4096] Endgame. KBN-KBN} 26. Nc5 {[%emt 0:00:00]} g5 {[%emt 0:11:26]} (26... Nd8 $14) 27. Ne6 {[%emt 0:00:00]} (27. Nxb7 $16 {f3 would now be deadly.} g4 28. Kh2) 27... g4 {[%emt 0:02:23]} 28. Nxc7 {[%emt 0:00:00]} Ne7 {[%emt 0:00:03]} (28... Kf7 $1 $14) 29. Kh2 $16 {[%emt 0:00:00]} Kf7 {[%emt 0:07:48] [#]} (29... Nf5 $16 {is a better defense.}) 30. f3 $1 $18 {[%emt 0:00:00][%mdl 512]} gxf3 {[%emt 0:00:29]} 31. Kxh3 {[%emt 0:00:00]} Nf5 {[%emt 0:01:02]} 32. Nxd5 {[%emt 0:00:00]} Nxe3 {[%emt 0:02:52]} 33. Nxe3 {[%emt 0:00:00] KB-KN} Bg5 {[%emt 0:00:01] [#]} 34. Nd1 {[%emt 0:00:00]} Bc1 {[%emt 0:00:38]} 35. b3 {[%emt 0:00:00]} (35. g4 $18 {Black must now prevent Kg3.} Bf4 36. g5) 35... Bd2 $16 {[%emt 0:03:02]} 36. c4 {[%emt 0:00:00] aiming for Kg4.} Be1 {[%emt 0:02:10]} 37. d5 {[%emt 0:00:00]} Kf6 {[%emt 0:02:36]} 38. Kg4 {[%emt 0:00:00]} (38. Ne3 $1 $14) 38... f2 $11 {[%emt 0:00:12]} 39. Ne3 {[%emt 0:00:00] Hoping for Kf3.} Bd2 {[%emt 0:01:50]} 40. Nf1 {[%emt 0:00:00]} Bb4 {[%emt 0:00:02]} 41. Kf3 {[%emt 0:31:14]} Bc5 {[%emt 0:30:54]} 42. g4 {[%emt 0:06:30]} Ke5 {[%emt 0:05:15]} 43. Ng3 {[%emt 0:00:00]} g6 {[%emt 0:00:00]} 44. g5 {[%emt 0:00:00] Black defended with fortune.   Weighted Error Value: White=0.14 (very precise) /Black=0.10 (very precise) .  Mistake:       	White=4     	Black=3      Inaccurate:     	White=2     	Black=1      OK:         	White=12    	Black=10     Best:        	White=3     	Black=9      Brilliant:      	White=1     	---} 1/2-1/2

[Event "Czech Extraliga 2023-24"]
[Site "Czech Republic"]
[Date "2024.04.06"]
[Round "9.1"]
[White "Warakomski, Tomasz"]
[Black "Gumularz, Szymon"]
[Result "1/2-1/2"]
[ECO "C54"]
[WhiteElo "2537"]
[BlackElo "2591"]
[Annotator "TA"]
[PlyCount "66"]
[EventDate "2023.10.14"]
[EventCountry "CZE"]
[SourceTitle "playchess.com"]
[Source "ChessBase"]
[SourceQuality "1"]
[TimeControl "40/5400+30:1800+30"]

{[%evp 11,66,22,12,16,25,8,6,18,19,11,10,14,3,2,15,8,1,2,2,8,8,0,-6,-12,0,-17,10,16,22,22,15,19,22,0,0,0,0,0,0,0,0,-24,-16,-33,0,0,0,0,0,0,0,0,0,0,0,0,0]} 1. e4 {[%emt 0:00:03]} e5 {[%emt 0:00:06]} 2. Nf3 {[%emt 0:00:05]} Nc6 {[%emt 0:00:05]} 3. Bc4 {[%emt 0:00:09]} Bc5 {[%emt 0:00:07]} 4. O-O {[%emt 0:00:14]} Nf6 {[%emt 0:00:07]} 5. d3 {[%emt 0:00:05]} d6 {[%emt 0:00:06]} 6. c3 {[%emt 0:01:07]} a6 {[%emt 0:00:08]} 7. a4 {[%emt 0:00:46]} Ba7 {[%emt 0:00:07]} 8. Re1 {[%emt 0:02:21]} Ng4 {[%emt 0:03:17]} 9. Re2 {[%emt 0:03:07]} Nf6 {[%emt 0:00:10]} 10. Nbd2 {[%emt 0:11:53][%cal Bb1d2,Bd2f1,Bf1e3][%mdl 32]} Nh5 {[%emt 0:00:30]} 11. Re1 {[%emt 0:09:15]} Qf6 {[%emt 0:00:48]} 12. Nf1 {[%emt 0:06:45]} Bg4 {[%emt 0:01:50]} 13. Ne3 {[%emt 0:00:52]} Bxf3 {[%emt 0:00:07]} 14. Qxf3 {[%emt 0:00:07]} Qxf3 {[%emt 0:00:06]} 15. gxf3 {[%emt 0:00:05]} Nd8 {[%emt 0:02:53]} 16. a5 {[%emt 0:11:16]} Ne6 {[%emt 0:00:18]} 17. Nc2 {[%emt 0:01:16]} Nhf4 {[%emt 0:02:48]} 18. Kf1 {[%emt 0:00:25]} h5 {[%emt 0:05:22] [#]} 19. d4 $1 {[%emt 0:02:00]} g5 {[%emt 0:04:13][%cal Bg7g5,Bg5g4][%mdl 32]} 20. Be3 {[%emt 0:12:08]} g4 {[%emt 0:11:08]} 21. Bxe6 {[%emt 0:01:53]} Nxe6 {[%emt 0:00:40]} 22. Ke2 {[%emt 0:00:41]} (22. dxe5 {simplifies} dxe5 23. fxg4 hxg4 24. Bxa7 Rxa7 25. Ne3) 22... O-O-O {[%emt 0:04:30]} 23. Rg1 {[%emt 0:05:47]} exd4 {[%emt 0:02:59]} 24. Nxd4 {[%emt 0:01:04]} Bxd4 {[%emt 0:04:41]} 25. Bxd4 {[%emt 0:04:00]} Rhg8 {[%emt 0:00:25]} 26. fxg4 {[%emt 0:02:08]} hxg4 {[%emt 0:00:13][%cal Of7f5]} 27. Be3 {[%emt 0:00:12]} Rde8 {[%emt 0:05:41]} 28. Kd3 {[%emt 0:02:24] The position is equal.} Rg6 {[%emt 0:02:18]} 29. Rg3 {[%emt 0:01:35]} Nf8 {[%emt 0:01:30]} 30. h3 {[%emt 0:04:27]} gxh3 {[%emt 0:01:55]} 31. Rxh3 {[%emt 0:00:04]} Nd7 {[%emt 0:00:12]} 32. Rh4 {[%emt 0:01:30]} Rge6 {[%emt 0:08:43]} 33. Rf4 {[%emt 0:01:28]} Ne5+ {[%emt 0:02:45] An interesting draw.   Weighted Error Value: White=0.04 (flawless) /Black=0.03 (flawless) .  Inaccurate:     	---       	Black=2      OK:         	White=12    	Black=11} 1/2-1/2

[Event "Czech Extraliga 2023-24"]
[Site "Czech Republic"]
[Date "2024.04.06"]
[Round "9.1"]
[White "Sahidi, Samir"]
[Black "Navara, David"]
[Result "1/2-1/2"]
[ECO "B50"]
[WhiteElo "2478"]
[BlackElo "2678"]
[Annotator "TA"]
[PlyCount "145"]
[EventDate "2023.10.14"]
[EventCountry "CZE"]
[SourceTitle "playchess.com"]
[Source "ChessBase"]
[SourceQuality "1"]
[TimeControl "40/5400+30:1800+30"]

{[%evp 57,145,0,4,0,23,23,20,23,24,21,23,12,14,0,27,18,24,19,13,12,15,12,9,9,9,16,24,24,24,24,24,12,24,12,90,18,24,17,16,11,24,13,13,13,47,47,47,47,47,47,47,47,47,47,47,17,17,17,47,24,47,47,47,47,47,0,47,0,47,24,24,24,24,24,24,24,24,24,24,24,24,24,24,24,24,24,24,24,24,8]} 1. e4 {[%emt 0:00:08]} c5 {[%emt 0:00:04]} 2. Nf3 {[%emt 0:00:14]} d6 {[%emt 0:00:04]} 3. Bc4 {[%emt 0:04:15]} Nf6 {[%emt 0:00:20]} 4. d3 {[%emt 0:00:53]} Nc6 {[%emt 0:00:49]} 5. O-O {[%emt 0:01:49]} g6 {[%emt 0:00:45]} 6. Re1 {[%emt 0:02:42]} Bg7 {[%emt 0:00:17]} 7. c3 {[%emt 0:05:39]} O-O {[%emt 0:01:18]} 8. Bb3 {[%emt 0:01:03]} b5 {[%emt 0:06:19] 8...e5 is the hot move. B50: Sicilian: 2...d6, Miscellaneous.} 9. h3 {[%emt 0:03:01]} a5 {[%emt 0:08:23]} 10. a4 {[%emt 0:05:48]} b4 {[%emt 0:00:18]} 11. Be3 {[%emt 0:02:09]} Ba6 {[%emt 0:01:03]} 12. Qc2 {[%emt 0:03:19]} Nd7 {[%emt 0:11:17]} 13. Nbd2 {[%emt 0:02:44]} Nde5 {[%emt 0:01:11]} 14. Nxe5 {[%emt 0:03:23]} Nxe5 {[%emt 0:00:20]} 15. Nc4 {[%emt 0:04:46]} Nxc4 {[%emt 0:01:20]} 16. Bxc4 {[%emt 0:01:23]} Bxc4 {[%emt 0:00:22]} 17. dxc4 {[%emt 0:00:06]} Rb8 {[%emt 0:01:53]} 18. Bd2 {[%emt 0:04:38]} Qd7 $146 {[%emt 0:02:28]} ({Predecessor:} 18... Qb6 19. Rab1 b3 20. Qd3 Rfe8 21. Ra1 Rb7 22. h4 Qc6 23. Qd5 Qa6 24. h5 e6 {1-0 Baklanov,V (2367)-Baum,H (2275) LSS WC-2013-S-00011 2010}) 19. b3 {[%emt 0:12:00]} bxc3 {[%emt 0:11:36]} 20. Bxc3 {[%emt 0:00:07]} Bxc3 {[%emt 0:00:11]} 21. Qxc3 {[%emt 0:00:06]} Rb4 {[%emt 0:00:06]} 22. e5 {[%emt 0:04:36]} Rfb8 {[%emt 0:07:35]} 23. exd6 {[%emt 0:04:19]} Rxb3 {[%emt 0:02:12]} 24. Qxa5 {[%emt 0:04:37]} exd6 {[%emt 0:00:28]} 25. Qd2 {[%emt 0:03:25]} R3b4 {[%emt 0:02:54]} 26. Qd5 {[%emt 0:03:28]} Rxa4 {[%emt 0:00:37]} 27. Rxa4 {[%emt 0:00:33]} Qxa4 {[%emt 0:00:06]} 28. Qxd6 {[%emt 0:00:22]} Rc8 {[%emt 0:00:34]} 29. Qd5 {[%emt 0:03:33]} Qa5 {[%emt 0:02:08]} 30. Rb1 {[%emt 0:05:57]} Qc3 {[%emt 0:02:48]} 31. g3 {[%emt 0:03:46]} Qd4 {[%emt 0:01:03]} 32. Rd1 {[%emt 0:01:56]} Qf6 {[%emt 0:00:10]} 33. Kg2 {[%emt 0:03:02]} Kg7 {[%emt 0:01:16]} 34. Rd3 {[%emt 0:01:01]} h5 {[%emt 0:01:02]} 35. h4 {[%emt 0:04:34]} Rc7 {[%emt 0:10:34]} 36. Qd6 {[%emt 0:01:33]} Qxd6 {[%emt 0:06:55]} 37. Rxd6 {[%emt 0:00:08]} Ra7 {[%emt 0:00:16]} 38. Rc6 {[%emt 0:00:06]} Ra3 {[%emt 0:00:08]} 39. Rxc5 {[%emt 0:00:51]} Rc3 {[%emt 0:01:00]} 40. Rc6 {[%emt 0:00:58]} Kf8 {[%emt 0:03:21]} 41. Rc7 {[%emt 0:30:46]} Kg7 {[%emt 0:30:06]} 42. c5 {[%emt 0:00:00]} Kf6 {[%emt 0:00:00]} 43. c6 {[%emt 0:00:00]} Ke6 {[%emt 0:00:00]} 44. Kf1 {[%emt 0:00:00]} Rc2 {[%emt 0:00:00]} 45. Ke1 {[%emt 0:00:00]} f6 {[%emt 0:00:00] [#]} (45... Rc5 $11 {remains equal.}) 46. Rc8 {[%emt 0:00:00]} (46. Rg7 $1 $16) 46... g5 $1 $11 {[%emt 0:00:00]} 47. hxg5 {[%emt 0:00:00]} fxg5 {[%emt 0:00:00]} 48. Kf1 {[%emt 0:02:48]} Kd6 {[%emt 0:06:23]} 49. Rg8 {[%emt 0:01:22]} (49. Rh8 {simplifies} Rxc6 50. Rxh5 Rc5 51. Ke2) 49... g4 {[%emt 0:01:39]} 50. Rg6+ {[%emt 0:00:59]} Kd5 {[%emt 0:00:10]} 51. Rh6 {[%emt 0:00:32]} Rxc6 {[%emt 0:00:10]} 52. Rxh5+ {[%emt 0:00:13]} Ke4 {[%emt 0:00:05]} 53. Rg5 {[%emt 0:00:14]} Rc4 $1 {[%emt 0:00:03]} 54. Kg2 {[%emt 0:01:02]} Kd3 {[%emt 0:00:05]} 55. Re5 {[%emt 0:00:29]} Ra4 {[%emt 0:00:35]} 56. Re3+ {[%emt 0:00:25]} Kd4 {[%emt 0:00:54]} 57. Re7 {[%emt 0:00:39]} Kd3 {[%emt 0:04:31]} 58. Kf1 {[%emt 0:01:03]} Rb4 59. Rf7 Rb1+ 60. Kg2 Rb4 $1 61. Re7 Ra4 62. Kf1 Rb4 63. Re3+ Kd4 64. Re1 Kd5 65. Re8 Kd4 66. f3 Rb3 67. Re4+ Kd5 68. Rxg4 Rxf3+ 69. Kg2 Rf6 70. Kh3 Ke6 71. Kh4 $1 Kf7 72. Kh5 Ra6 73. Rb4 {[%emt 0:06:48]} 1/2-1/2

[Event "Czech Extraliga 2023-24"]
[Site "Czech Republic"]
[Date "2024.04.06"]
[Round "9.1"]
[White "Haring, Filip"]
[Black "Stocek, Jiri"]
[Result "1/2-1/2"]
[ECO "B51"]
[WhiteElo "2463"]
[BlackElo "2531"]
[Annotator "RC"]
[PlyCount "49"]
[EventDate "2023.10.14"]
[EventCountry "CZE"]
[SourceTitle "playchess.com"]
[Source "ChessBase"]
[SourceQuality "1"]
[TimeControl "40/5400+30:1800+30"]

1. e4 {[%emt 0:00:06]} c5 {[%emt 0:00:35]} 2. Nf3 {[%emt 0:00:23]} d6 {[%emt 0:02:52]} 3. Bb5+ {[%emt 0:00:38]} Nd7 {[%emt 0:00:53]} 4. c3 {[%emt 0:01:04]} Ngf6 {[%emt 0:00:18]} 5. Qe2 {[%emt 0:01:10]} a6 {[%emt 0:05:08]} 6. Ba4 {[%emt 0:01:55]} b5 {[%emt 0:02:36]} 7. Bc2 {[%emt 0:00:06]} e5 {[%emt 0:02:41]} 8. O-O {[%emt 0:01:43]} Be7 {[%emt 0:01:38]} 9. d4 {[%emt 0:03:28]} cxd4 {[%emt 0:09:50]} 10. cxd4 {[%emt 0:00:07]} O-O {[%emt 0:00:08]} 11. Rd1 {[%emt 0:02:30]} exd4 {[%emt 0:00:28]} 12. Nxd4 {[%emt 0:05:25]} Ne5 {[%emt 0:01:05]} 13. a4 {[%emt 0:06:50]} b4 {[%emt 0:11:49]} 14. Bf4 {[%emt 0:06:51]} Bg4 {[%emt 0:10:16]} 15. f3 {[%emt 0:00:51]} Bd7 {[%emt 0:00:16]} 16. Nd2 {[%emt 0:16:16]} Re8 {[%emt 0:03:15]} 17. Nc4 {[%emt 0:07:20]} Rc8 {[%emt 0:11:09]} 18. Bb3 {[%emt 0:06:08]} Bf8 {[%emt 0:00:45]} 19. Bxe5 {[%emt 0:08:19]} dxe5 {[%emt 0:00:18]} 20. Nf5 {[%emt 0:00:01]} Rc6 {[%emt 0:04:46]} 21. Qd2 {[%emt 0:00:54]} Ree6 {[%emt 0:10:33]} 22. Nce3 {[%emt 0:17:06]} Re8 {[%emt 0:00:54]} 23. Nc4 {[%emt 0:01:35]} Ree6 {[%emt 0:00:11]} 24. Nce3 {[%emt 0:02:22]} Re8 {[%emt 0:00:27]} 25. Nc4 {[%emt 0:00:22]} 1/2-1/2

[Event "Czech Extraliga 2023-24"]
[Site "Czech Republic"]
[Date "2024.04.06"]
[Round "9.2"]
[White "Saric, Ivan"]
[Black "Neugebauer, Martin"]
[Result "1-0"]
[ECO "E18"]
[WhiteElo "2689"]
[BlackElo "2525"]
[Annotator "TA"]
[PlyCount "71"]
[EventDate "2023.10.14"]
[EventCountry "CZE"]
[SourceTitle "playchess.com"]
[Source "ChessBase"]
[SourceQuality "1"]
[TimeControl "40/5400+30:1800+30"]

{[%evp 16,71,32,34,34,35,43,-2,41,38,35,36,46,36,49,40,44,48,41,33,66,74,134,139,110,71,44,45,111,86,66,31,112,88,70,47,104,66,103,117,99,83,86,73,86,63,73,54,597,597,596,547,606,594,1204,1094,1272,1260]} 1. Nf3 {[%emt 0:00:03]} Nf6 {[%emt 0:00:19]} 2. g3 {[%emt 0:00:05]} b6 {[%emt 0:02:26]} 3. Bg2 {[%emt 0:00:05]} Bb7 {[%emt 0:00:04]} 4. O-O {[%emt 0:00:09]} e6 {[%emt 0:00:14]} 5. c4 {[%emt 0:07:54]} Be7 {[%emt 0:00:40]} 6. Nc3 {[%emt 0:01:37]} O-O {[%emt 0:06:03]} 7. Qc2 {[%emt 0:01:48]} c5 {[%emt 0:05:35]} 8. e4 {[%emt 0:00:39]} d6 {[%emt 0:01:46]} 9. d4 {[%emt 0:02:10]} cxd4 {[%emt 0:00:18]} 10. Nxd4 {[%emt 0:00:04]} Qc7 {[%emt 0:03:39]} 11. Ndb5 {[%emt 0:07:43]} Qc6 {[%emt 0:04:54] The position is equal.} 12. b3 {[%emt 0:10:37]} a6 {[%emt 0:01:52]} 13. Nd4 {[%emt 0:00:04]} Qc7 {[%emt 0:00:07]} 14. Bb2 {[%emt 0:01:17]} Nbd7 {[%emt 0:05:37]} 15. Rad1 {[%emt 0:00:09]} Rac8 {[%emt 0:07:22]} 16. Qe2 {[%emt 0:00:36]} Rfe8 {[%emt 0:01:52]} 17. f4 {[%emt 0:05:05]} Bf8 {[%emt 0:09:39]} 18. g4 {[%emt 0:11:40][%cal Bg3g4,Bg4g5][%mdl 32] g5 would now be deadly.} Nb8 {[%emt 0:16:44]} (18... Nc5 $142) 19. g5 $16 {[%emt 0:01:08]} Nfd7 {[%emt 0:00:07]} 20. h4 {[%emt 0:07:02] White is much more active.} Nc6 {[%emt 0:02:24]} 21. Nc2 {[%emt 0:02:18][%cal Bd4c2,Bc2e3,Be3g4][%mdl 32]} Qb8 {[%emt 0:03:34]} (21... b5 $1 $14) 22. Ne3 {[%emt 0:00:55]} b5 {[%emt 0:01:49]} 23. Kh1 {[%emt 0:02:24]} Nc5 {[%emt 0:06:11]} (23... bxc4 $14 24. Nxc4 (24. bxc4 Na5 $14) 24... d5) 24. Ng4 {[%emt 0:02:27]} ({Much weaker is} 24. cxb5 $6 axb5 25. Qxb5 (25. Nxb5 Ba6 $17) 25... Qa7 $11) 24... bxc4 {[%emt 0:03:30]} 25. bxc4 {[%emt 0:00:07]} ({Of course not} 25. Qxc4 $6 a5 26. Nb5 Ba6 $15) 25... Na5 {[%emt 0:03:24] [#]} (25... Nd7 $1 $14) 26. Ba1 $1 {[%emt 0:12:51]} Qc7 {[%emt 0:00:41]} 27. Rf3 {[%emt 0:00:20]} Nd7 {[%emt 0:02:53] [#]} 28. Rg3 $1 $36 {[%emt 0:00:26][%cal Oc3d5][%mdl 2048] aiming for Nd5! White is really pushing.} g6 {[%emt 0:03:13] [#]} 29. h5 $1 {[%emt 0:03:12]} Nxc4 {[%emt 0:01:02]} (29... Bg7 30. Rh3) 30. Nf6+ {[%emt 0:02:55]} Nxf6 {[%emt 0:00:08]} 31. gxf6 {[%emt 0:00:02]} Qa5 $2 {[%emt 0:02:20][%mdl 8192] Loses the game.} ({Black should try} 31... d5 $1 $14 32. hxg6 (32. exd5 $2 {perishes.} Qxf4 33. Qf3 Qxf3 $19) 32... fxg6) 32. hxg6 $18 {[%emt 0:03:30] White is clearly winning.} fxg6 {[%emt 0:06:03] [#]} 33. e5 $1 {[%emt 0:15:38][%cal Be4e5,Be5d6][%mdl 544]} Qc7 {[%emt 0:00:30][%cal Rd6e5]} (33... Rc7 34. Bxb7) 34. Ne4 {[%emt 0:00:30] Ng5 is the strong threat.} Bh6 {[%emt 0:00:30]} 35. exd6 {[%emt 0:00:00]} Qd7 {[%emt 0:00:00]} 36. Qh5 {[%emt 0:00:00] Weighted Error Value: White=0.08 (flawless) /Black=0.51.  Loses game:     	---       	Black=1      Mistake:       	---       	Black=4      Inaccurate:     	White=3     	Black=4      OK:         	White=7     	Black=7      Best:        	White=2     	Black=3      Strong:       	White=2     	---        Brilliant:      	White=1     	---} 1-0